fUST/lending_fUST_20240408
["ID","MTS","AMOUNT","RATE_DAILY","PERIOD"]
[321869067,1712577043952,-500.0,0.00066849,120]
[321869068,1712577043961,-3543.94,0.00066849,120]
[321869069,1712577043970,-1151.96,0.00066849,120]
[321869070,1712577043979,-648.17,0.00066849,120]
[321869071,1712577043988,-765.98,0.00066849,120]
[321869072,1712577043997,-982.96,0.00066849,21]
[321869073,1712577044005,-2044.15,0.00066849,120]
[321869074,1712577044014,-500.0,0.00066849,120]
[321869075,1712577044024,-500.0,0.00066849,120]
[321869076,1712577044033,-1037.31,0.00066849,120]
[321869077,1712577044042,-627.43,0.00066849,120]
[321869078,1712577044051,-500.0,0.00066849,120]
[321869079,1712577044060,-500.0,0.00066849,120]
[321869080,1712577044069,-500.0,0.00066849,120]
[321869081,1712577044078,-646.66,0.00066849,120]
[321869082,1712577044086,-500.0,0.00066849,120]
[321869083,1712577044095,-1571.455899,0.00066849,14]
[321869084,1712577044104,-1571.455899,0.00066849,14]
[321869085,1712577044113,-500.0,0.00066849,120]
[321869086,1712577044122,-500.0,0.00066849,120]
[321869087,1712577044131,-656.27,0.00066849,120]
[321869088,1712577044140,-500.0,0.00066849,120]
[321869089,1712577044149,-1707.07,0.00066849,2]
[321869090,1712577044159,-500.0,0.00066849,120]
[321869091,1712577044168,-500.0,0.00066849,120]
[321869092,1712577044177,-875.29,0.00066849,120]
[321869093,1712577044186,-1015.23,0.00066849,120]
[321869094,1712577044199,-500.0,0.00066849,120]
[321869095,1712577044208,-500.0,0.00066849,120]
[321869096,1712577044219,-1184.0,0.00066849,120]
[321869097,1712577044230,-3330.85,0.00066849,120]
[321869098,1712577044240,-500.0,0.00066849,60]
[321869099,1712577044249,-4537.26,0.00066849,120]
[321869100,1712577044258,-502.9759644,0.00067138,120]
[321869101,1712577044269,-197.23843841,0.00067138,120]
[321869102,1712577044283,-2000.0,0.00067455,120]
[321869103,1712577044293,-151.0,0.00067569,120]
[321869104,1712577044302,-399.9912,0.00067569,120]
[321869105,1712577044311,-246.807362,0.00067569,120]
[321869106,1712577044320,-246.807362,0.00067569,120]
[321869107,1712577044330,-399.9912,0.00067569,120]
[321869108,1712577044339,-622.04,0.00067569,120]
[321869109,1712577044349,-1479.84,0.00067569,120]
[321869110,1712577044358,-4434.95,0.00067569,120]
[321869111,1712577044368,-500.0,0.00067569,120]
[321869112,1712577044377,-781.83,0.00067569,120]
[321869113,1712577044387,-500.0,0.00067569,120]
[321869114,1712577044396,-589.37,0.00067569,120]
[321869115,1712577044405,-1937.1,0.00067569,120]
[321869116,1712577044414,-502.9759644,0.00067669,120]
[321869117,1712577044424,-197.23843841,0.00067669,120]
[321869118,1712577044433,-707.84,0.00067671,120]
[321869119,1712577044442,-500.0,0.00067671,120]
[321869120,1712577044451,-500.0,0.00067671,120]
[321869121,1712577044460,-500.0,0.00067671,120]
[321869122,1712577044470,-536.57217078,0.00067671,120]
[321869123,1712577044479,-151.0,0.00067671,120]
[321869124,1712577044488,-716.68,0.00067671,120]
[321869125,1712577044497,-500.0,0.00067671,120]
[321869126,1712577044506,-500.0,0.00067671,120]
[321869127,1712577044516,-500.0,0.00067671,120]
[321869128,1712577044527,-523.99,0.00067671,120]
[321869129,1712577044536,-500.0,0.00067671,120]
[321869130,1712577044545,-500.0,0.00067671,120]
[321869131,1712577044554,-151.0,0.00067671,120]
[321869132,1712577044563,-395.27206747,0.00067671,120]
[321869133,1712577044573,-1010.15,0.00067671,120]
[321869134,1712577044582,-317.463472,0.00067671,120]
[321869135,1712577044591,-317.463472,0.00067671,120]
[321869136,1712577044600,-500.0,0.00067671,120]
[321869137,1712577044609,-500.0,0.00067671,120]
[321869138,1712577044618,-532.92,0.00067671,120]
[321869139,1712577044628,-243.294986,0.00067671,120]
[321869140,1712577044637,-256.180668,0.00067671,120]
[321869141,1712577044646,-1049.22,0.00067671,120]
[321869142,1712577044655,-159.63390791,0.00067671,120]
[321869143,1712577044664,-256.49438441,0.00067671,120]
[321869144,1712577044674,-500.0,0.00067671,120]
[321869145,1712577044684,-605.38,0.00067671,120]
[321869146,1712577044694,-500.0,0.00067671,120]
[321869147,1712577044703,-500.0,0.00067671,120]
[321869148,1712577044713,-520.87,0.00067671,120]
[321869149,1712577044723,-500.0,0.00067671,120]
[321869150,1712577044732,-818.52,0.00067671,120]
[321869151,1712577044742,-1031.03,0.00067671,120]
[321869152,1712577044752,-500.0,0.00067671,120]
[321869153,1712577044761,-500.0,0.00067671,120]
[321869154,1712577044770,-591.72607,0.00067671,120]
[321869155,1712577044780,-591.72607,0.00067671,120]
[321869156,1712577044789,-2951.75,0.00067671,120]
[321869157,1712577044798,-1649.05,0.00067671,120]
[321869158,1712577044807,-1764.97,0.00067671,120]
[321869159,1712577044815,-509.53,0.00067671,120]
[321869160,1712577044824,-1799.77,0.00067671,120]
[321869161,1712577044834,-500.0,0.00067671,120]
[321869162,1712577044843,-590.57,0.00067671,120]
[321869163,1712577044853,-151.0,0.00067671,120]
[321869164,1712577044862,-908.0,0.00067671,120]
[321869165,1712577044870,-1261.58,0.00067671,120]
[321869166,1712577044879,-5684.42,0.00067671,90]
[321869167,1712577044888,-500.0,0.00067671,120]
[321869168,1712577044897,-3543.94,0.00067671,120]
[321869169,1712577044906,-1151.96,0.00067671,120]
[321869170,1712577044916,-648.17,0.00067671,120]
[321869171,1712577044924,-765.98,0.00067671,120]
[321869172,1712577044934,-982.96,0.00067671,21]
[321869173,1712577044943,-2044.15,0.00067671,120]
[321869174,1712577044952,-500.0,0.00067671,120]
[321869175,1712577044961,-500.0,0.00067671,120]
[321869176,1712577044970,-1037.31,0.00067671,120]
[321869177,1712577044979,-627.43,0.00067671,120]
[321869178,1712577044988,-500.0,0.00067671,120]
[321869179,1712577044997,-500.0,0.00067671,120]
[321869180,1712577045006,-500.0,0.00067671,120]
[321869181,1712577045015,-646.66,0.00067671,120]
[321869182,1712577045027,-500.0,0.00067671,120]
[321869183,1712577045037,-1571.455899,0.00067671,14]
[321869184,1712577045046,-1571.455899,0.00067671,14]
[321869185,1712577045056,-500.0,0.00067671,120]
[321869186,1712577045065,-162.05247451,0.00067671,120]
[321869187,1712577045074,-656.27,0.00067671,120]
[321869188,1712577045083,-500.0,0.00067671,120]
[321869189,1712577045092,-1707.07,0.00067671,2]
[321869190,1712577045101,-500.0,0.00067671,120]
[321869191,1712577045110,-500.0,0.00067671,120]
[321869192,1712577045119,-875.29,0.00067671,120]
[321869193,1712577045128,-1015.23,0.00067671,120]
[321869194,1712577045138,-500.0,0.00067671,120]
[321869195,1712577045146,-449.166071,0.00067671,120]
[321869196,1712577045156,-449.166071,0.00067671,120]
[321869197,1712577045165,-500.0,0.00067671,120]
[321869198,1712577045174,-1184.0,0.00067671,120]
[321869199,1712577045184,-3330.85,0.00067671,120]
[321869200,1712577045194,-500.0,0.00067671,60]
[321869201,1712577045204,-4537.26,0.00067671,120]
[321869202,1712577045213,-277.197203,0.00067772,2]
[321869203,1712577045222,-1000.0,0.00068,120]
[321869204,1712577045231,-1000.0,0.00068,120]
[321869205,1712577045240,-1000.0,0.00068,120]
[321869206,1712577045250,-2000.0,0.00068,120]
[321869207,1712577045259,-1683.165497,0.00068,120]
[321869208,1712577045270,-151.0,0.00068,120]
[321869209,1712577045281,-502.9759644,0.00068201,120]
[321869210,1712577045290,-197.23843841,0.00068201,120]
[321869211,1712577045299,-622.04,0.00068391,120]
[321869212,1712577045308,-1479.84,0.00068391,120]
[321869213,1712577045316,-4434.95,0.00068391,120]
[321869214,1712577045326,-500.0,0.00068391,120]
[321869215,1712577045335,-781.83,0.00068391,120]
[321869216,1712577045344,-500.0,0.00068391,120]
[321869217,1712577045353,-589.37,0.00068391,120]
[321869218,1712577045428,-1937.1,0.00068391,120]
[321869219,1712577045438,-3977.13670253,0.00068492,120]
[321869220,1712577045447,-707.84,0.00068493,120]
[321869221,1712577045456,-500.0,0.00068493,120]
[321869222,1712577045465,-500.0,0.00068493,120]
[321869223,1712577045474,-500.0,0.00068493,120]
[321869224,1712577045483,-151.0,0.00068493,120]
[321869225,1712577045492,-716.68,0.00068493,120]
[321869226,1712577045500,-500.0,0.00068493,120]
[321869227,1712577045509,-500.0,0.00068493,120]
[321869228,1712577045518,-500.0,0.00068493,120]
[321869229,1712577045528,-523.99,0.00068493,120]
[321869230,1712577045537,-500.0,0.00068493,120]
[321869231,1712577045546,-500.0,0.00068493,120]
[321869232,1712577045555,-1010.15,0.00068493,120]
[321869233,1712577045564,-317.463472,0.00068493,120]
[321869234,1712577045573,-317.463472,0.00068493,120]
[321869235,1712577045582,-500.0,0.00068493,120]
[321869236,1712577045592,-500.0,0.00068493,120]
[321869237,1712577045600,-532.92,0.00068493,120]
[321869238,1712577045610,-1049.22,0.00068493,120]
[321869239,1712577045619,-151.0,0.00068493,120]
[321869240,1712577045628,-399.9912,0.00068493,120]
[321869241,1712577045637,-246.807362,0.00068493,120]
[321869242,1712577045646,-246.807362,0.00068493,120]
[321869243,1712577045655,-399.9912,0.00068493,120]
[321869244,1712577045664,-500.0,0.00068493,120]
[321869245,1712577045673,-605.38,0.00068493,120]
[321869246,1712577045682,-500.0,0.00068493,120]
[321869247,1712577045691,-500.0,0.00068493,120]
[321869248,1712577045700,-520.87,0.00068493,120]
[321869249,1712577045709,-500.0,0.00068493,120]
[321869250,1712577045718,-818.52,0.00068493,120]
[321869251,1712577045727,-1031.03,0.00068493,120]
[321869252,1712577045736,-500.0,0.00068493,120]
[321869254,1712577045745,-500.0,0.00068493,120]
[321869255,1712577045754,-591.72607,0.00068493,120]
[321869256,1712577045764,-591.72607,0.00068493,120]
[321869258,1712577045774,-2951.75,0.00068493,120]
[321869261,1712577045784,-1649.05,0.00068493,120]
[321869263,1712577045793,-1764.97,0.00068493,120]
[321869268,1712577045803,-509.53,0.00068493,120]
[321869271,1712577045812,-1799.77,0.00068493,120]
[321869276,1712577045822,-500.0,0.00068493,120]
[321869280,1712577045831,-152.766146,0.00068493,120]
[321869284,1712577045840,-908.0,0.00068493,120]
[321869287,1712577045849,-1261.58,0.00068493,120]
[321869291,1712577045858,-5684.42,0.00068493,90]
[321869294,1712577045867,-500.0,0.00068493,120]
[321869299,1712577045876,-3543.94,0.00068493,120]
[321869301,1712577045886,-1151.96,0.00068493,120]
[321869304,1712577045895,-648.17,0.00068493,120]
[321869307,1712577045904,-765.98,0.00068493,120]
[321869310,1712577045913,-982.96,0.00068493,21]
[321869313,1712577045921,-2044.15,0.00068493,120]
[321869316,1712577045930,-500.0,0.00068493,120]
[321869319,1712577045939,-500.0,0.00068493,120]
[321869321,1712577045948,-1037.31,0.00068493,120]
[321869324,1712577045958,-627.43,0.00068493,120]
[321869326,1712577045967,-500.0,0.00068493,120]
[321869328,1712577045976,-500.0,0.00068493,120]
[321869330,1712577045986,-500.0,0.00068493,120]
[321869332,1712577045995,-646.66,0.00068493,120]
[321869335,1712577046005,-500.0,0.00068493,120]
[321869338,1712577046014,-500.0,0.00068493,120]
[321869340,1712577046024,-656.27,0.00068493,120]
[321869342,1712577046033,-500.0,0.00068493,120]
[321869344,1712577046042,-1707.07,0.00068493,2]
[321869346,1712577046051,-500.0,0.00068493,120]
[321869348,1712577046060,-500.0,0.00068493,120]
[321869350,1712577046069,-875.29,0.00068493,120]
[321869352,1712577046079,-1015.23,0.00068493,120]
[321869354,1712577046088,-500.0,0.00068493,120]
[321869356,1712577046097,-449.166071,0.00068493,120]
[321869358,1712577046106,-449.166071,0.00068493,120]
[321869360,1712577046115,-500.0,0.00068493,120]
[321869362,1712577046124,-1184.0,0.00068493,120]
[321869363,1712577046133,-3330.85,0.00068493,120]
[321869364,1712577046143,-500.0,0.00068493,60]
[321869365,1712577046152,-4537.26,0.00068493,120]
[321869366,1712577046161,-502.9759644,0.00068732,120]
[321869367,1712577046170,-197.23843841,0.00068732,120]
[321869369,1712577046179,-10000.0,0.000689,120]
[321869371,1712577046189,-151.0,0.000689,120]
[321869373,1712577046201,-1571.455899,0.000689,14]
[321869375,1712577046210,-1571.455899,0.000689,14]
[321869376,1712577046219,-154.8915759,0.00069,7]
[321869377,1712577046228,-500.0,0.00069,120]
[321869378,1712577046238,-446.0,0.00069,120]
[321869379,1712577046247,-10000.0,0.00069,120]
[321869381,1712577046256,-151.0,0.00069,120]
[321869382,1712577046265,-2500.0,0.00069,120]
[321869384,1712577046278,-509.03645467,0.00069043,60]
[321869386,1712577046289,-1000.0,0.00069114,60]
[321869388,1712577046298,-1000.0,0.00069143,60]
[321869389,1712577046307,-1000.0,0.00069158,60]
[321869390,1712577046317,-1000.0,0.00069186,60]
[321869391,1712577046327,-622.04,0.00069213,120]
[321869392,1712577046337,-1479.84,0.00069213,120]
[321869393,1712577046346,-4434.95,0.00069213,120]
[321869394,1712577046354,-500.0,0.00069213,120]
[321869395,1712577046365,-781.83,0.00069213,120]
[321869396,1712577046374,-500.0,0.00069213,120]
[321869397,1712577046383,-589.37,0.00069213,120]
[321869398,1712577046393,-1937.1,0.00069213,120]
[321869399,1712577046404,-502.9759644,0.00069264,120]
[321869400,1712577046413,-197.23843841,0.00069264,120]
[321869401,1712577046422,-300.76601858,0.00069289,60]
[321869402,1712577046432,-426.4556,0.000693,30]
[321869403,1712577046441,-596.5807638,0.000693,60]
[321869404,1712577046449,-707.84,0.00069315,120]
[321869405,1712577046459,-500.0,0.00069315,120]
[321869406,1712577046468,-500.0,0.00069315,120]
[321869407,1712577046477,-500.0,0.00069315,120]
[321869408,1712577046486,-151.0,0.00069315,120]
[321869409,1712577046495,-716.68,0.00069315,120]
[321869410,1712577046504,-500.0,0.00069315,120]
[321869411,1712577046512,-500.0,0.00069315,120]
[321869412,1712577046522,-500.0,0.00069315,120]
[321869413,1712577046533,-523.99,0.00069315,120]
[321869414,1712577046543,-500.0,0.00069315,120]
[321869415,1712577046552,-500.0,0.00069315,120]
[321869416,1712577046562,-1010.15,0.00069315,120]
[321869417,1712577046571,-500.0,0.00069315,120]
[321869418,1712577046580,-500.0,0.00069315,120]
[321869419,1712577046590,-532.92,0.00069315,120]
[321869420,1712577046599,-1049.22,0.00069315,120]
[321869421,1712577046609,-151.0,0.00069315,120]
[321869422,1712577046618,-246.807362,0.00069315,120]
[321869423,1712577046627,-399.9912,0.00069315,120]
[321869424,1712577046637,-246.807362,0.00069315,120]
[321869425,1712577046646,-399.9912,0.00069315,120]
[321869426,1712577046656,-500.0,0.00069315,120]
[321869427,1712577046665,-605.38,0.00069315,120]
[321869428,1712577046674,-500.0,0.00069315,120]
[321869429,1712577046684,-500.0,0.00069315,120]
[321869430,1712577046693,-520.87,0.00069315,120]
[321869431,1712577046703,-522.92279832,0.00069315,120]
[321869432,1712577046712,-818.52,0.00069315,120]
[321869433,1712577046721,-1031.03,0.00069315,120]
[321869434,1712577046730,-500.0,0.00069315,120]
[321869435,1712577046739,-192.21415531,0.00069315,120]
[321869436,1712577046748,-2951.75,0.00069315,120]
[321869437,1712577046757,-1649.05,0.00069315,120]
[321869438,1712577046767,-1764.97,0.00069315,120]
[321869439,1712577046778,-509.53,0.00069315,120]
[321869440,1712577046788,-1799.77,0.00069315,120]
[321869441,1712577046798,-297.25817553,0.00069315,120]
[321869442,1712577046807,-908.0,0.00069315,120]
[321869443,1712577046817,-1261.58,0.00069315,120]
[321869444,1712577046827,-5684.42,0.00069315,90]
[321869445,1712577046836,-500.0,0.00069315,120]
[321869447,1712577046846,-3543.94,0.00069315,120]
[321869449,1712577046855,-1151.96,0.00069315,120]
[321869450,1712577046863,-648.17,0.00069315,120]
[321869451,1712577046872,-765.98,0.00069315,120]
[321869452,1712577046881,-982.96,0.00069315,21]
[321869453,1712577046891,-2044.15,0.00069315,120]
[321869454,1712577046900,-158.38044988,0.00069315,120]
[321869455,1712577046909,-436.09,0.00069315,120]
[321869456,1712577046917,-1037.31,0.00069315,120]
[321869457,1712577046926,-627.43,0.00069315,120]
[321869458,1712577046935,-500.0,0.00069315,120]
[321869459,1712577046944,-500.0,0.00069315,120]
[321869460,1712577046953,-450.0,0.00069315,120]
[321869461,1712577046962,-646.66,0.00069315,120]
[321869462,1712577046971,-500.0,0.00069315,120]
[321869463,1712577047039,-500.0,0.00069315,120]
[321869464,1712577047049,-656.27,0.00069315,120]
[321869465,1712577047057,-500.0,0.00069315,120]
[321869466,1712577047066,-1707.07,0.00069315,2]
[321869467,1712577047075,-500.0,0.00069315,120]
[321869468,1712577047084,-500.0,0.00069315,120]
[321869469,1712577047093,-875.29,0.00069315,120]
[321869470,1712577047102,-1015.23,0.00069315,120]
[321869472,1712577047112,-494.0,0.00069315,120]
[321869474,1712577047121,-449.166071,0.00069315,120]
[321869476,1712577047130,-449.166071,0.00069315,120]
[321869478,1712577047139,-645.76994637,0.00069315,120]
[321869479,1712577047148,-1184.0,0.00069315,120]
[321869481,1712577047157,-3330.85,0.00069315,120]
[321869482,1712577047166,-500.0,0.00069315,60]
[321869483,1712577047175,-4537.26,0.00069315,120]
[321869485,1712577047184,-500.0,0.00069315,120]
[321869486,1712577047196,-502.9759644,0.00069795,120]
[321869487,1712577047204,-197.23843841,0.00069795,120]
[321869488,1712577047213,-317.463472,0.000699,120]
[321869489,1712577047222,-317.463472,0.000699,120]
[321869490,1712577047231,-591.72607,0.000699,120]
[321869491,1712577047241,-591.72607,0.000699,120]
[321869492,1712577047250,-10000.0,0.000699,120]
[321869493,1712577047259,-1000.0,0.00069987,3]
[321869494,1712577047269,-1000.0,0.0007,120]
[321869495,1712577047279,-1000.0,0.0007,120]
[321869496,1712577047288,-1000.0,0.0007,120]
[321869497,1712577047298,-1000.0,0.0007,120]
[321869498,1712577047307,-1000.0,0.0007,120]
[321869499,1712577047317,-250.14061571,0.0007,120]
[321869500,1712577047325,-151.0,0.0007,120]
[321869501,1712577047334,-600.0,0.0007,120]
[321869502,1712577047343,-993.15255587,0.0007,10]
[321869503,1712577047353,-16797.0,0.0007,120]
[321869504,1712577047362,-4889.86402216,0.0007,120]
[321869505,1712577047371,-10000.0,0.0007,120]
[321869506,1712577047380,-151.0,0.0007,120]
[321869507,1712577047390,-259.002158,0.0007,120]
[321869508,1712577047399,-246.807362,0.0007,120]
[321869509,1712577047408,-399.9912,0.0007,120]
[321869510,1712577047418,-246.807362,0.0007,120]
[321869511,1712577047427,-399.9912,0.0007,120]
[321869512,1712577047436,-229.949163,0.0007,120]
[321869513,1712577047445,-1571.455899,0.0007,14]
[321869514,1712577047454,-1571.455899,0.0007,14]
[321869515,1712577047463,-622.04,0.00070035,120]
[321869516,1712577047472,-1479.84,0.00070035,120]
[321869517,1712577047481,-4434.95,0.00070035,120]
[321869518,1712577047490,-500.0,0.00070035,120]
[321869519,1712577047499,-781.83,0.00070035,120]
[321869520,1712577047509,-500.0,0.00070035,120]
[321869521,1712577047517,-589.37,0.00070035,120]
[321869522,1712577047528,-1937.1,0.00070035,120]
[321869523,1712577047537,-707.84,0.00070136,120]
[321869524,1712577047545,-500.0,0.00070136,120]
[321869525,1712577047554,-500.0,0.00070136,120]
[321869526,1712577047563,-500.0,0.00070136,120]
[321869527,1712577047573,-151.0,0.00070136,120]
[321869528,1712577047582,-716.68,0.00070136,120]
[321869529,1712577047590,-500.0,0.00070136,120]
[321869530,1712577047600,-500.0,0.00070136,120]
[321869531,1712577047609,-161.02520785,0.00070136,120]
[321869532,1712577047618,-523.99,0.00070136,120]
[321869533,1712577047627,-500.0,0.00070136,120]
[321869534,1712577047636,-342.3,0.00070136,120]
[321869535,1712577047645,-151.0,0.00070136,120]
[321869536,1712577047654,-1010.15,0.00070136,120]
[321869537,1712577047663,-317.463472,0.00070136,120]
[321869538,1712577047672,-317.463472,0.00070136,120]
[321869539,1712577047680,-579.5853429,0.00070136,120]
[321869540,1712577047690,-500.0,0.00070136,120]
[321869541,1712577047700,-532.92,0.00070136,120]
[321869542,1712577047709,-1049.22,0.00070136,120]
[321869543,1712577047718,-500.0,0.00070136,120]
[321869544,1712577047727,-605.38,0.00070136,120]
[321869545,1712577047736,-500.0,0.00070136,120]
[321869546,1712577047745,-500.0,0.00070136,120]
[321869547,1712577047754,-520.87,0.00070136,120]
[321869548,1712577047763,-818.52,0.00070136,120]
[321869549,1712577047772,-1031.03,0.00070136,120]
[321869550,1712577047782,-644.43547606,0.00070136,120]
[321869551,1712577047792,-591.72607,0.00070136,120]
[321869552,1712577047802,-591.72607,0.00070136,120]
[321869553,1712577047811,-2951.75,0.00070136,120]
[321869554,1712577047821,-1649.05,0.00070136,120]
[321869555,1712577047830,-748.32540539,0.00070136,120]
[321869556,1712577047907,-1016.64459461,0.00070136,120]
[321869557,1712577047916,-509.53,0.00070136,120]
[321869558,1712577047925,-1799.77,0.00070136,120]
[321869559,1712577047935,-908.0,0.00070136,120]
[321869560,1712577047944,-1261.58,0.00070136,120]
[321869561,1712577047953,-5684.42,0.00070136,90]
[321869562,1712577047962,-500.0,0.00070136,120]
[321869563,1712577047971,-3543.94,0.00070136,120]
[321869564,1712577047980,-1151.96,0.00070136,120]
[321869565,1712577047990,-648.17,0.00070136,120]
[321869566,1712577048000,-765.98,0.00070136,120]
[321869567,1712577048009,-982.96,0.00070136,21]
[321869568,1712577048019,-2044.15,0.00070136,120]
[321869569,1712577048028,-1037.31,0.00070136,120]
[321869570,1712577048037,-627.43,0.00070136,120]
[321869571,1712577048047,-500.0,0.00070136,120]
[321869572,1712577048057,-500.0,0.00070136,120]
[321869573,1712577048066,-646.66,0.00070136,120]
[321869574,1712577048075,-500.0,0.00070136,120]
[321869575,1712577048085,-500.0,0.00070136,120]
[321869576,1712577048095,-656.27,0.00070136,120]
[321869577,1712577048105,-500.0,0.00070136,120]
[321869578,1712577048115,-1707.07,0.00070136,2]
[321869579,1712577048124,-500.0,0.00070136,120]
[321869580,1712577048134,-500.0,0.00070136,120]
[321869581,1712577048143,-875.29,0.00070136,120]
[321869582,1712577048152,-1015.23,0.00070136,120]
[321869583,1712577048162,-449.166071,0.00070136,120]
[321869584,1712577048172,-449.166071,0.00070136,120]
[321869585,1712577048182,-1184.0,0.00070136,120]
[321869586,1712577048195,-3330.85,0.00070136,120]
[321869587,1712577048207,-500.0,0.00070136,60]
[321869588,1712577048216,-1184.43896829,0.00070136,120]
[321869589,1712577048229,-3352.82103171,0.00070136,120]
[321869590,1712577048239,-596.5807638,0.000703,60]
[321869591,1712577048249,-502.9759644,0.00070327,120]
[321869592,1712577048259,-197.23843841,0.00070327,120]
[321869593,1712577048269,-60.37441479,0.00070857,120]
[321869594,1712577048601,-561.66558521,0.00070857,120]
[321869595,1712577048610,-976.39469833,0.00070857,120]
[321869596,1712577048681,-503.44530167,0.00070857,120]
[321869597,1712577048690,-696.44391809,0.00070857,120]
[321869598,1712577048703,-1199.9695351,0.00070857,120]
[321869599,1712577048714,-959.64006268,0.00070857,120]
[321869600,1712577048726,-435.10624373,0.00070857,120]
[321869601,1712577048737,-1021.96855091,0.00070857,120]
[321869602,1712577049507,-121.82168949,0.00070857,120]
[321869603,1712577049516,-213.17097325,0.00070857,120]
[321869604,1712577049888,200.0,0.00028,30]
[321869620,1712577497837,346.0,0.00028,30]
[321869627,1712577945130,-211.10073738,0.00027367,2]
[321869628,1712577945150,-220.14831517,0.00027368,2]
[321869629,1712577945169,-935.87904205,0.00027369,2]
[321869630,1712577945189,-263.37349984,0.0002737,2]
[321869631,1712577945210,-282.23953123,0.0002737,2]
[321869632,1712577945230,-180.98113052,0.00027371,2]
[321869633,1712577945251,-176.203743,0.00027397,2]
[321869634,1712577945270,-160.4037179,0.00031941,2]
[321869635,1712577945290,-366.06553438,0.00034662,2]
[321869638,1712578028116,-295.78468449,0.0003354,4]
[321869639,1712578028135,-353.86074834,0.0003354,4]
[321869640,1712578028155,-923.90858482,0.00033541,4]
[321869641,1712578035097,-0.25681764,0.00033541,4]
[321869642,1712578035118,-400.0,0.00034659,2]
[321869643,1712578035139,-370.0,0.00034659,2]
[321869644,1712578035247,-140.14542023,0.0003466,4]
[321869645,1712578050110,-758.96590493,0.0003466,4]
[321869646,1712578050130,-673.66076107,0.0003466,4]
[321869651,1712578146132,-859.00228183,0.00031194,4]
[321869652,1712578146154,-192.09985291,0.00034659,4]
[321869653,1712578146175,-365.20859837,0.00034659,4]
[321869654,1712578146196,-283.0,0.00034659,2]
[321869655,1712578146216,-708.58890985,0.0003466,4]
[321869656,1712578146237,-1382.24967092,0.0003466,4]
[321869657,1712578146258,-1382.24967092,0.0003466,4]
[321869658,1712578146279,-1382.24967092,0.0003466,4]
[321869659,1712578146299,-4021.89458428,0.00034661,4]
[321869660,1712578149100,-5257.89689814,0.00034661,4]
[321869661,1712578149121,-189.112387,0.00034663,2]
[321869662,1712578149144,-329.23473766,0.00035215,7]
[321869663,1712578149165,-192.37488231,0.00035215,2]
[321869664,1712578149185,-335.85779546,0.00035306,2]
[321869665,1712578149206,-934.88072641,0.00035306,4]
[321869666,1712578149227,-282.0779007,0.00035306,4]
[321869667,1712578149247,-421.87560837,0.00035306,4]
[321869668,1712578149267,-180.88142279,0.00035306,4]
[321869669,1712578149287,-172.56117092,0.00035306,4]
[321869670,1712578149308,-1271.41785701,0.00035307,4]
[321869671,1712578149328,-22133.9996383,0.00035308,2]
[321869672,1712578149348,-5407.0114717,0.00035315,2]
[321869673,1712578149375,-795.254738,0.0003538,2]
[321869674,1712578149482,-156.98066734,0.00040887,2]
[321869675,1712578149504,-6635.88666859,0.00041,4]
[321869676,1712578149526,-166.666666,0.00041096,2]
[321869677,1712578149548,-157.37579852,0.00041212,4]